fUSD/lending_fUSD_20240519
["ID","MTS","AMOUNT","RATE_DAILY","PERIOD"]
[327471330,1716097839380,-500.0,0.00027671,2]
[327471331,1716097839389,-768.86,0.00027671,2]
[327471332,1716097839399,-626.24,0.00027671,2]
[327471333,1716097839408,-500.0,0.00027671,2]
[327471334,1716097839417,-500.0,0.00027671,2]
[327471335,1716097839426,-500.0,0.00027671,2]
[327471336,1716097839436,-500.0,0.00027671,2]
[327471337,1716097839445,-500.0,0.00027671,2]
[327471338,1716097839454,-500.0,0.00027671,2]
[327471339,1716097839464,-500.0,0.00027671,2]
[327471340,1716097839474,-520.16,0.00027671,2]
[327471341,1716097839483,-500.0,0.00027671,2]
[327471342,1716097839493,-500.0,0.00027671,2]
[327471343,1716097839502,-500.0,0.00027671,2]
[327471344,1716097839511,-500.0,0.00027671,2]
[327471345,1716097839520,-500.0,0.00027671,2]
[327471346,1716097839529,-500.0,0.00027671,2]
[327471347,1716097839539,-500.0,0.00027671,2]
[327471348,1716097839548,-500.0,0.00027671,2]
[327471349,1716097839558,-500.0,0.00027671,2]
[327471350,1716097839568,-500.0,0.00027671,2]
[327471351,1716097839577,-500.0,0.00027671,2]
[327471352,1716097839587,-500.0,0.00027671,2]
[327471353,1716097839597,-500.0,0.00027671,2]
[327471354,1716097839607,-421.25613156,0.00027671,2]
[327471355,1716097839616,-500.0,0.00027671,2]
[327471356,1716097839625,-500.0,0.00027671,2]
[327471357,1716097839634,-500.0,0.00027671,2]
[327471358,1716097839643,-500.0,0.00027671,2]
[327471359,1716097839652,-621.67,0.00027671,2]
[327471360,1716097839662,-500.0,0.00027671,2]
[327471361,1716097839671,-500.0,0.00027671,2]
[327471362,1716097839680,-500.0,0.00027671,2]
[327471363,1716097839690,-500.0,0.00027671,2]
[327471364,1716097839699,-516.49,0.00027671,2]
[327471365,1716097839710,-500.0,0.00027671,2]
[327471366,1716097839719,-500.0,0.00027671,2]
[327471367,1716097839729,-159.20241434,0.00027671,2]
[327471368,1716097839738,-500.0,0.00027671,2]
[327471369,1716097839748,-500.0,0.00027671,2]
[327471370,1716097839757,-151.0,0.00027671,7]
[327471371,1716097839766,-418.39271963,0.00027671,2]
[327471372,1716097839775,-500.0,0.00027671,2]
[327471373,1716097839784,-512.96033009,0.00027671,2]
[327471374,1716097839794,-329.40894969,0.00027671,2]
[327471375,1716097839803,-500.0,0.00027671,2]
[327471376,1716097839813,-545.15,0.00027671,2]
[327471377,1716097839822,-500.0,0.00027671,2]
[327471378,1716097839832,-500.0,0.00027671,2]
[327471379,1716097839842,-215.81058128,0.00027671,2]
[327471380,1716097839854,-500.0,0.00027671,2]
[327471381,1716097839863,-500.0,0.00027671,2]
[327471382,1716097839873,-1460.17,0.00027671,2]
[327471383,1716097839883,-1181.72,0.00027671,2]
[327471384,1716097839892,-238.88524475,0.00027671,2]
[327471385,1716097839902,-500.0,0.00027671,2]
[327471386,1716097839911,-517.00384636,0.00027671,2]
[327471387,1716097839922,-1026.46,0.00027671,2]
[327471388,1716097839932,-675.45,0.00027671,2]
[327471389,1716097839942,-523.84,0.00027671,2]
[327471390,1716097839952,-500.0,0.00027671,2]
[327471391,1716097839961,-500.0,0.00027671,2]
[327471392,1716097839971,-500.0,0.00027671,2]
[327471393,1716097839980,-2856.35,0.00027671,2]
[327471394,1716097839990,-500.0,0.00027671,2]
[327471395,1716097839999,-500.0,0.00027671,2]
[327471396,1716097840008,-500.0,0.00027671,2]
[327471397,1716097840018,-500.0,0.00027671,2]
[327471398,1716097840028,-345.3362084,0.00027671,2]
[327471399,1716097840038,-500.0,0.00027671,2]
[327471400,1716097840047,-500.0,0.00027671,2]
[327471401,1716097840057,-500.0,0.00027671,2]
[327471402,1716097840066,-500.0,0.00027671,2]
[327471403,1716097840076,-500.0,0.00027671,2]
[327471404,1716097840086,-519.47,0.00027671,2]
[327471405,1716097840096,-500.0,0.00027671,2]
[327471406,1716097840105,-2380.12,0.00027671,2]
[327471407,1716097840115,-500.0,0.00027671,2]
[327471408,1716097840125,-500.0,0.00027671,2]
[327471409,1716097840134,-1424.95,0.00027671,2]
[327471410,1716097840144,-729.91,0.00027671,2]
[327471411,1716097840154,-521.73408559,0.00027671,2]
[327471412,1716097840164,-500.0,0.00027671,2]
[327471413,1716097840173,-500.0,0.00027671,2]
[327471414,1716097840184,-740.3,0.00027671,2]
[327471415,1716097840194,-2054.05,0.00027671,2]
[327471416,1716097840204,-6211.14,0.00027671,2]
[327471417,1716097840213,-760.73,0.00027671,2]
[327471418,1716097840223,-500.0,0.00027671,2]
[327471419,1716097840232,-748.91,0.00027671,2]
[327471420,1716097840243,-1441.16,0.00027671,2]
[327471421,1716097840252,-500.0,0.00027671,2]
[327471422,1716097840261,-500.0,0.00027671,2]
[327471423,1716097840271,-514.11,0.00027671,2]
[327471424,1716097840280,-655.5,0.00027671,2]
[327471425,1716097840289,-558.16,0.00027671,2]
[327471426,1716097840299,-5402.61,0.00027671,2]
[327471427,1716097840308,-387.28434737,0.00027671,2]
[327471428,1716097840318,-500.0,0.00027671,2]
[327471429,1716097840328,-573.6,0.00027671,2]
[327471430,1716097840338,-500.0,0.00027671,2]
[327471431,1716097840347,-500.0,0.00027671,2]
[327471432,1716097840357,-500.0,0.00027671,2]
[327471433,1716097840366,-682.9,0.00027671,2]
[327471434,1716097840376,-660.13,0.00027671,2]
[327471435,1716097840385,-500.0,0.00027671,2]
[327471436,1716097840395,-833.24,0.00027671,2]
[327471437,1716097840403,-500.0,0.00027671,2]
[327471438,1716097840414,-1211.35,0.00027671,2]
[327471439,1716097840423,-544.17,0.00027671,2]
[327471441,1716097840432,-500.0,0.00027671,2]
[327471443,1716097840442,-500.0,0.00027671,2]
[327471445,1716097840452,-971.5,0.00027671,2]
[327471447,1716097840462,-679.99,0.00027671,2]
[327471449,1716097840471,-500.0,0.00027671,2]
[327471451,1716097840480,-500.0,0.00027671,2]
[327471452,1716097840489,-972.91,0.00027671,2]
[327471453,1716097840498,-561.96314877,0.00027671,2]
[327471454,1716097840508,-500.0,0.00027671,2]
[327471455,1716097840517,-500.0,0.00027671,2]
[327471456,1716097840526,-891.78,0.00027671,2]
[327471457,1716097840536,-677.56,0.00027671,2]
[327471458,1716097840545,-897.23,0.00027671,2]
[327471459,1716097840554,-719.95,0.00027671,2]
[327471460,1716097840563,-920.98,0.00027671,2]
[327471461,1716097840572,-644.19,0.00027671,2]
[327471462,1716097840582,-500.0,0.00027671,2]
[327471463,1716097840591,-500.0,0.00027671,2]
[327471464,1716097840601,-500.0,0.00027671,2]
[327471465,1716097840615,-500.0,0.00027671,2]
[327471466,1716097840625,-500.0,0.00027671,2]
[327471467,1716097840634,-500.0,0.00027671,2]
[327471468,1716097840644,-535.73,0.00027671,2]
[327471469,1716097840654,-682.8,0.00027671,2]
[327471470,1716097840663,-500.0,0.00027671,2]
[327471471,1716097840673,-1095.22,0.00027671,2]
[327471472,1716097840683,-500.0,0.00027671,2]
[327471473,1716097840693,-500.0,0.00027671,2]
[327471474,1716097840702,-500.0,0.00027671,2]
[327471475,1716097840712,-500.0,0.00027671,2]
[327471476,1716097840722,-798.27,0.00027671,2]
[327471477,1716097840731,-3746.93,0.00027671,2]
[327471478,1716097840741,-719.23,0.00027671,2]
[327471479,1716097840754,-470.0,0.00027671,2]
[327471480,1716097840764,-500.0,0.00027671,2]
[327471481,1716097840773,-500.0,0.00027671,2]
[327471482,1716097840782,-661.45,0.00027671,2]
[327471483,1716097840792,-746.57,0.00027671,2]
[327471484,1716097840801,-500.0,0.00027671,2]
[327471485,1716097840810,-619.97,0.00027671,2]
[327471486,1716097840820,-500.0,0.00027671,2]
[327471487,1716097840830,-1395.55,0.00027671,2]
[327471488,1716097840839,-604.05,0.00027671,2]
[327471489,1716097840853,-500.41089798,0.00027671,2]
[327471490,1716097840862,-500.0,0.00027671,2]
[327471491,1716097840871,-1005.55,0.00027671,2]
[327471492,1716097840882,-500.0,0.00027671,2]
[327471493,1716097840893,-1183.89,0.00027671,2]
[327471494,1716097840903,-500.0,0.00027671,2]
[327471495,1716097840913,-535.32958642,0.00027671,2]
[327471496,1716097840923,-2165.73,0.00027671,2]
[327471497,1716097840934,-500.0,0.00027671,2]
[327471498,1716097840943,-2730.12,0.00027671,2]
[327471499,1716097840953,-500.0,0.00027671,2]
[327471500,1716097840963,-500.0,0.00027671,2]
[327471501,1716097840972,-500.0,0.00027671,2]
[327471502,1716097840982,-504.74,0.00027671,2]
[327471503,1716097840991,-876.6,0.00027671,2]
[327471504,1716097841000,-1158.83,0.00027671,2]
[327471505,1716097841010,-500.0,0.00027671,2]
[327471506,1716097841019,-4283.98,0.00027671,2]
[327471507,1716097841028,-532.36,0.00027671,2]
[327471509,1716097841038,-1539.99,0.00027671,2]
[327471510,1716097841047,-500.0,0.00027671,2]
[327471512,1716097841056,-1524.1,0.00027671,2]
[327471514,1716097841066,-500.0,0.00027671,2]
[327471516,1716097841076,-1593.3,0.00027671,2]
[327471518,1716097841085,-880.5,0.00027671,2]
[327471519,1716097841094,-500.0,0.00027671,2]
[327471521,1716097841103,-500.0,0.00027671,2]
[327471523,1716097841113,-626.25,0.00027671,2]
[327471525,1716097841122,-1287.87,0.00027671,2]
[327471527,1716097841131,-500.0,0.00027671,2]
[327471528,1716097841140,-570.38,0.00027671,2]
[327471530,1716097841150,-652.73,0.00027671,2]
[327471533,1716097841159,-754.76,0.00027671,2]
[327471535,1716097841168,-569.32052369,0.00027671,2]
[327471537,1716097841177,-500.0,0.00027671,2]
[327471539,1716097841187,-500.0,0.00027671,2]
[327471541,1716097841195,-500.0,0.00027671,2]
[327471543,1716097841204,-3222.72,0.00027671,2]
[327471544,1716097841214,-500.0,0.00027671,2]
[327471546,1716097841224,-500.0,0.00027671,2]
[327471548,1716097841234,-2769.57,0.00027671,2]
[327471550,1716097841244,-10094.28,0.00027671,2]
[327471552,1716097841253,-500.0,0.00027671,2]
[327471554,1716097841263,-1167.78,0.00027671,2]
[327471556,1716097841272,-2612.03,0.00027671,2]
[327471558,1716097841281,-500.0,0.00027671,2]
[327471560,1716097841290,-500.0,0.00027671,2]
[327471562,1716097841299,-1416.29,0.00027671,2]
[327471564,1716097841309,-546.58,0.00027671,2]
[327471566,1716097841317,-13714.13,0.00027671,2]
[327471568,1716097841327,-500.0,0.00027671,2]
[327471570,1716097841337,-605.92,0.00027671,2]
[327471572,1716097841346,-500.0,0.00027671,2]
[327471574,1716097841355,-1202.61,0.00027671,2]
[327471576,1716097841364,-1037.54,0.00027671,2]
[327471578,1716097841373,-500.0,0.00027671,2]
[327471580,1716097841383,-500.0,0.00027671,2]
[327471582,1716097841392,-500.0,0.00027671,2]
[327471584,1716097841401,-150.0,0.00027672,2]
[327471586,1716097841410,-150.0,0.00027672,2]
[327471588,1716097841419,-150.0,0.00027673,2]
[327471590,1716097841428,-150.0,0.00027674,2]
[327471592,1716097841437,-1000.0,0.00027678,15]
[327471594,1716097841447,-150.0,0.00027678,2]
[327471596,1716097841457,-300.0,0.00027678,2]
[327471598,1716097841467,-155.99121968,0.00027678,2]
[327471600,1716097841476,-1000.0,0.00027678,15]
[327471602,1716097841486,-200.0,0.00027679,2]
[327471604,1716097841495,-1000.0,0.00027679,15]
[327471606,1716097841505,-1000.0,0.00027679,15]
[327471608,1716097841514,-500.0,0.00027679,2]
[327471610,1716097841523,-150.0,0.0002768,2]
[327471612,1716097841532,-150.0,0.0002768,2]
[327471614,1716097841541,-150.0,0.0002768,2]
[327471616,1716097841551,-150.0,0.00027681,2]
[327471618,1716097841561,-150.0,0.00027681,2]
[327471620,1716097841572,-150.0,0.00027685,2]
[327471622,1716097841582,-150.0,0.0002769,2]
[327471624,1716097841591,-150.0,0.0002769,2]
[327471626,1716097841601,-150.0,0.00027691,2]
[327471628,1716097841610,-150.0,0.00027692,2]
[327471630,1716097841620,-150.0,0.00027692,2]
[327471632,1716097841629,-150.0,0.00027692,2]
[327471634,1716097841639,-150.0,0.00027694,2]
[327471636,1716097841648,-150.0,0.00027695,2]
[327471638,1716097841657,-157.051914,0.00027698,8]
[327471640,1716097841666,-1500.0,0.000277,2]
[327471642,1716097841676,-150.0,0.00027703,2]
[327471644,1716097841685,-150.0,0.00027704,2]
[327471646,1716097841694,-150.0,0.00027706,2]
[327471648,1716097841703,-150.0,0.00027707,2]
[327471650,1716097841713,-150.0,0.00027707,2]
[327471652,1716097841722,-150.0,0.00027709,2]
[327471654,1716097841731,-150.0,0.00027709,2]
[327471655,1716097841741,-150.0,0.0002771,2]
[327471656,1716097841750,-150.0,0.00027711,2]
[327471657,1716097841760,-150.0,0.00027712,2]
[327471658,1716097841769,-150.0,0.00027712,2]
[327471659,1716097841778,-300.0,0.00027714,2]
[327471660,1716097841787,-150.0,0.00027714,2]
[327471661,1716097841797,-150.0,0.00027715,2]
[327471662,1716097841806,-150.0,0.00027716,2]
[327471663,1716097841815,-300.0,0.0002772,2]
[327471664,1716097841825,-150.0,0.00027721,2]
[327471665,1716097841834,-150.0,0.00027723,2]
[327471666,1716097841846,-1500.0,0.00027724,2]
[327471668,1716097841856,-151.08712859,0.00027724,2]
[327471670,1716097841867,-300.0,0.00027725,2]
[327471672,1716097841876,-309.51597614,0.00027725,2]
[327471674,1716097841887,-150.0,0.00027729,2]
[327471676,1716097841897,-150.0,0.00027729,2]
[327471678,1716097841906,-150.0,0.00027729,2]
[327471680,1716097841916,-150.0,0.0002773,2]
[327471682,1716097841926,-150.0,0.00027732,2]
[327471684,1716097841936,-1500.0,0.00027736,2]
[327471686,1716097841947,-300.0,0.00027737,2]
[327471688,1716097841957,-150.0,0.00027742,2]
[327471690,1716097841966,-1500.0,0.00027743,2]
[327471692,1716097841976,-150.0,0.00027743,2]
[327471694,1716097841986,-150.0,0.00027744,2]
[327471696,1716097841995,-150.0,0.00027744,2]
[327471698,1716097842005,-150.0,0.00027745,2]
[327471700,1716097842014,-300.0,0.00027746,2]
[327471703,1716097842025,-150.0,0.00027748,2]
[327471705,1716097842034,-199.051914,0.00027748,8]
[327471707,1716097842044,-150.0,0.0002775,2]
[327471709,1716097842054,-150.0,0.0002775,2]
[327471711,1716097842064,-150.0,0.00027752,2]
[327471713,1716097842074,-150.0,0.00027753,2]
[327471715,1716097842084,-150.0,0.00027754,2]
[327471717,1716097842093,-150.0,0.00027755,2]
[327471719,1716097842102,-150.0,0.00027756,2]
[327471721,1716097842111,-150.0,0.00027756,2]
[327471723,1716097842121,-150.0,0.00027758,2]
[327471725,1716097842131,-150.0,0.0002776,2]
[327471727,1716097842141,-1500.0,0.00027762,2]
[327471729,1716097842151,-300.0,0.00027763,2]
[327471731,1716097842160,-150.0,0.00027765,2]
[327471733,1716097842170,-150.0,0.00027766,2]
[327471735,1716097842179,-150.0,0.00027767,2]
[327471737,1716097842189,-4856.25,0.00027767,2]
[327471739,1716097842199,-150.0,0.00027768,2]
[327471741,1716097842208,-150.0,0.00027777,2]
[327471743,1716097842218,-150.0,0.00027777,2]
[327471745,1716097842228,-150.0,0.00027779,2]
[327471747,1716097842237,-150.0,0.00027781,2]
[327471749,1716097842246,-150.0,0.00027781,2]
[327471751,1716097842256,-300.0,0.00027782,2]
[327471753,1716097842265,-300.0,0.00027786,2]
[327471755,1716097842274,-1500.0,0.00027786,2]
[327471757,1716097842284,-150.0,0.0002779,2]
[327471759,1716097842293,-150.0,0.00027791,2]
[327471761,1716097842303,-150.0,0.00027793,2]
[327471763,1716097842312,-1500.0,0.00027794,2]
[327471765,1716097842321,-150.0,0.00027795,2]
[327471767,1716097842332,-150.0,0.00027798,2]
[327471770,1716097842341,-150.0,0.00027798,2]
[327471772,1716097842350,-150.0,0.00027799,2]
[327471774,1716097842360,-150.0,0.00027801,2]
[327471776,1716097842369,-150.0,0.00027804,2]
[327471778,1716097842379,-150.0,0.00027808,2]
[327471780,1716097842388,-150.0,0.00027808,2]
[327471782,1716097842397,-150.0,0.00027809,2]
[327471784,1716097842407,-150.0,0.00027811,2]
[327471786,1716097842416,-1500.0,0.00027812,2]
[327471788,1716097842427,-150.0,0.00027815,2]
[327471790,1716097842436,-150.0,0.00027815,2]
[327471792,1716097842446,-150.0,0.00027819,2]
[327471794,1716097842456,-150.0,0.00027819,2]
[327471796,1716097842465,-209.0,0.0002782,2]
[327471798,1716097842475,-150.0,0.0002782,2]
[327471800,1716097842485,-1500.0,0.00027821,2]
[327471802,1716097842495,-150.0,0.00027823,2]
[327471804,1716097842505,-1500.0,0.00027826,2]
[327471806,1716097842514,-1500.0,0.00027827,2]
[327471808,1716097842524,-150.0,0.00027827,2]
[327471810,1716097842533,-150.0,0.00027828,2]
[327471812,1716097842543,-1500.0,0.00027831,2]
[327471814,1716097842552,-150.0,0.00027831,2]
[327471816,1716097842562,-150.0,0.00027832,2]
[327471818,1716097842571,-150.0,0.00027834,2]
[327471821,1716097842582,-150.0,0.00027838,2]
[327471823,1716097842591,-1000.0,0.00027845,2]
[327471825,1716097842601,-173.051914,0.00027848,8]
[327471827,1716097842611,-1500.0,0.00027855,2]
[327471829,1716097842620,-1500.0,0.00027859,2]
[327471831,1716097842629,-150.0,0.00027865,2]
[327471833,1716097842639,-1500.0,0.00027873,2]
[327471835,1716097842648,-300.0,0.00027877,2]
[327471837,1716097842658,-150.0,0.00027877,2]
[327471839,1716097842668,-209.0,0.0002788,2]
[327471841,1716097842677,-1530.45222948,0.0002788,2]
[327471843,1716097842686,-981.70305689,0.00027881,5]
[327471845,1716097842696,-1500.0,0.00027882,2]
[327471847,1716097842705,-150.0,0.00027882,2]
[327471849,1716097842714,-150.0,0.00027887,2]
[327471851,1716097842723,-150.0,0.00027888,2]
[327471853,1716097842733,-150.0,0.0002789,2]
[327471855,1716097842743,-150.0,0.00027891,2]
[327471857,1716097842752,-150.0,0.00027899,2]
[327471859,1716097842762,-160.0,0.000279,2]
[327471861,1716097842772,-151.0,0.000279,7]
[327471863,1716097842781,-151.0,0.000279,7]
[327471865,1716097842791,-156.152499,0.000279,7]
[327471867,1716097842800,-11358.0498617,0.000279,2]
[327471869,1716097842810,-3697.5022397,0.000279,2]
[327471871,1716097842819,-23807.4596793,0.000279,2]
[327471873,1716097842830,-4248.20057603,0.000279,2]
[327471894,1716097843046,-36991.34518497,0.000279,2]
[327471895,1716097843055,-2242.9904149,0.000279,2]
[327471896,1716097843065,-2035.6751109,0.000279,2]
[327471897,1716097843075,-11503.5869471,0.000279,2]
[327471898,1716097843086,-534.1584564,0.00027901,2]
[327471899,1716097843096,-220.0,0.0002791,2]
[327471900,1716097843106,-1459.71,0.00027913,2]
[327471901,1716097843115,-458.36017413,0.00027919,2]
[327471902,1716097843125,-2000.0,0.0002792,2]
[327471903,1716097843135,-11212.9131161,0.00027921,2]
[327471904,1716097843145,-3650.2543892,0.00027921,2]
[327471905,1716097843155,-151.0,0.00027921,7]
[327471906,1716097843164,-23402.6143289,0.00027921,2]
[327471907,1716097843173,-40712.5738307,0.00027921,2]
[327471908,1716097843183,-766.13190914,0.00027936,2]
[327471909,1716097843193,-220.23222952,0.00027939,2]
[327471910,1716097843202,-1063.71248597,0.0002794,4]
[327471911,1716097843215,-538.72781616,0.0002794,4]
[327471913,1716097843970,-150.0,0.00020295,2]
[327471914,1716097843980,-322.94127538,0.00027297,2]
[327471915,1716097844181,-7.2e-07,0.00027297,2]
[327471916,1716097844249,-7177.0587239,0.00027297,2]
[327471917,1716097844259,-41950.98229082,0.00027397,2]
[327471918,1716097844268,-599.39304496,0.00027397,2]
[327471919,1716097844278,-830.51551,0.0002762,2]
[327471920,1716097844287,-150.0,0.00027624,2]
[327471921,1716097844296,-150.0,0.00027627,2]
[327471922,1716097844306,-150.0,0.0002763,2]
[327471923,1716097844315,-150.0,0.00027636,2]
[327471924,1716097844324,-150.0,0.00027649,2]
[327471925,1716097844334,-150.0,0.00027653,2]
[327471926,1716097844344,-150.0,0.00027668,2]
[327471927,1716097844353,-150.0,0.00027676,2]
[327471928,1716097844362,-150.0,0.00027681,2]
[327471929,1716097844371,-150.0,0.00027694,2]
[327471931,1716097844380,-150.0,0.00027699,2]
[327471933,1716097844390,-150.0,0.00027702,2]
[327471935,1716097844399,-150.0,0.0002771,2]
[327471936,1716097844408,-150.0,0.00027712,2]
[327471939,1716097844418,-150.0,0.00027717,2]
[327471940,1716097844427,-169.22236422,0.00027735,2]
[327471941,1716097844436,-150.0,0.00027741,2]
[327471943,1716097844446,-150.0,0.00027752,2]
[327471945,1716097844455,-150.0,0.00027769,2]
[327471947,1716097844465,-150.0,0.00027777,2]
[327471948,1716097844473,-150.0,0.00027778,2]
[327471949,1716097844483,-150.0,0.00027786,2]
[327471950,1716097844492,-150.0,0.00027786,2]
[327471951,1716097844502,-150.0,0.0002782,2]
[327471952,1716097844512,-150.0,0.00027825,2]
[327471953,1716097844522,-150.0,0.00027833,2]
[327471954,1716097844531,-150.0,0.00027841,2]
[327471955,1716097844542,-150.0,0.00027844,2]
[327471956,1716097844552,-150.0,0.00027849,2]
[327471958,1716097844562,-150.0,0.00027853,2]
[327471960,1716097844572,-150.0,0.0002786,2]
[327471962,1716097844582,-150.0,0.00027876,2]
[327471964,1716097844592,-150.0,0.00027879,2]
[327471966,1716097844602,-3614.4484524,0.0002788,2]
[327471968,1716097844611,-181.87914728,0.0002788,2]
[327471970,1716097844620,-215.1289669,0.0002788,2]
[327471972,1716097844630,-150.0,0.00027882,2]
[327471974,1716097844639,-150.0,0.00027888,2]
[327471976,1716097844649,-254491.15790501,0.0002794,4]
[327471979,1716097844663,-174510.19432764,0.0002794,4]
[327471985,1716097844712,-99103.28782854,0.0002794,4]
[327471987,1716097844722,-151.0,0.0002794,7]
[327471989,1716097844732,-151.0,0.0002794,7]
[327471991,1716097844742,-198.776416,0.0002794,7]
[327471993,1716097844751,-524.622251,0.0002794,7]
[327471995,1716097844761,-524.622251,0.0002794,7]
[327471997,1716097844771,-155.79102567,0.00027943,2]
[327471999,1716097844781,-156.60720383,0.00027943,2]
[327472001,1716097844790,-600.0,0.00027944,2]
[327472003,1716097844800,-155.10961112,0.00027944,2]
[327472005,1716097844810,-500.0,0.00027945,2]
[327472007,1716097844819,-903.45,0.00027945,2]
[327472009,1716097844830,-164.04853217,0.00027945,2]
[327472011,1716097844839,-500.0,0.00027945,2]
[327472013,1716097844853,-500.0,0.00027945,2]
[327472015,1716097844863,-302.21304024,0.00027945,2]
[327472017,1716097844872,-546.45221721,0.00027945,2]
[327472019,1716097844883,-218.5500777,0.00027945,2]
[327472021,1716097844893,-245.09741159,0.00027945,2]
[327472023,1716097844902,-500.0,0.00027945,2]
[327472025,1716097844911,-530.58,0.00027945,2]
[327472027,1716097844924,-515.48,0.00027945,2]
[327472029,1716097844934,-545.18048257,0.00027945,2]
[327472031,1716097844943,-986.23,0.00027945,2]
[327472033,1716097844952,-500.0,0.00027945,2]
[327472035,1716097844962,-500.0,0.00027945,2]
[327472037,1716097844971,-723.16,0.00027945,2]
[327472039,1716097844980,-500.0,0.00027945,2]
[327472041,1716097844989,-500.0,0.00027945,2]
[327472043,1716097844999,-500.0,0.00027945,2]
[327472045,1716097845010,-500.0,0.00027945,2]
[327472047,1716097845020,-500.0,0.00027945,2]
[327472049,1716097845029,-546.91744113,0.00027945,2]
[327472051,1716097845039,-500.0,0.00027945,2]
[327472053,1716097845048,-500.0,0.00027945,2]
[327472055,1716097845057,-500.0,0.00027945,2]
[327472057,1716097845067,-523.05877101,0.00027945,2]
[327472059,1716097845077,-361.54272885,0.00027945,2]
[327472061,1716097845087,-500.0,0.00027945,2]
[327472063,1716097845096,-500.0,0.00027945,2]
[327472065,1716097845106,-500.0,0.00027945,2]
[327472067,1716097845116,-500.0,0.00027945,2]
[327472069,1716097845125,-246.70397128,0.00027945,2]
[327472072,1716097845135,-554.46950157,0.00027945,2]
[327472074,1716097845144,-500.0,0.00027945,2]
[327472075,1716097845154,-500.0,0.00027945,2]
[327472076,1716097845163,-281.56925005,0.00027945,2]
[327472077,1716097845172,-500.0,0.00027945,2]
[327472078,1716097845181,-500.0,0.00027945,2]
[327472079,1716097845191,-500.0,0.00027945,2]
[327472080,1716097845200,-533.24,0.00027945,2]
[327472081,1716097845210,-500.0,0.00027945,2]
[327472082,1716097845219,-500.0,0.00027945,2]
[327472083,1716097845229,-181.60005558,0.00027945,2]
[327472084,1716097845238,-500.0,0.00027945,2]
[327472085,1716097845248,-1342.86,0.00027945,2]
[327472086,1716097845257,-500.0,0.00027945,2]
[327472087,1716097845267,-500.0,0.00027945,2]
[327472088,1716097845277,-500.0,0.00027945,2]
[327472089,1716097845286,-424.71689884,0.00027945,2]
[327472090,1716097845296,-500.0,0.00027945,2]
[327472091,1716097845306,-500.0,0.00027945,2]
[327472092,1716097845315,-500.0,0.00027945,2]
[327472093,1716097845325,-500.0,0.00027945,2]
[327472094,1716097845335,-500.0,0.00027945,2]
[327472095,1716097845344,-500.0,0.00027945,2]
[327472096,1716097845354,-150.0,0.00027945,2]
[327472097,1716097845363,-500.0,0.00027945,2]
[327472098,1716097845372,-500.0,0.00027945,2]
[327472099,1716097845381,-235.17319213,0.00027945,2]
[327472100,1716097845391,-500.0,0.00027945,2]
[327472101,1716097845401,-500.0,0.00027945,2]
[327472102,1716097845410,-768.86,0.00027945,2]
[327472103,1716097845420,-626.24,0.00027945,2]